[Event "Portuguese-ch U14-20 2022"]
[Site "Fatima"]
[Date "2022.04.12"]
[Round "5.1"]
[White "Santos, Jose Miguel Sereno"]
[Black "Martins, Bruno Andre Leite"]
[Result "0-1"]
[ECO "B30"]
[WhiteElo "1843"]
[BlackElo "2323"]
[Annotator "TA"]
[PlyCount "62"]
[EventDate "2022.04.10"]
[EventType "swiss"]
[EventCountry "POR"]
[SourceTitle "playchess.com"]
[Source "ChessBase"]
[SourceQuality "1"]
[TimeControl "5400+30"]

{[%evp 9,62,44,47,32,50,28,29,11,25,0,4,-110,-116,-373,-378,-404,-404,-429,-405,-426,-433,-466,-430,-622,-594,-723,-697,-717,-703,-834,-837,-829,-805,-1818,-1779,-1685,-1744,-1562,-1368,-1237,-1173,-1385,-1066,-6953,-6785,-6137,-6137,-6048,-5831,-5303,-5247,-2269,-1410,-1104,-979]} 1. e4 {[%emt 0:03:21]} c5 {[%emt 0:01:25]} 2. Nf3 {[%emt 0:00:10]} Nc6 {[%emt 0:01:01]} 3. Nc3 {[%emt 0:00:16]} e5 {[%emt 0:03:46]} 4. Bc4 {[%emt 0:00:13]} g6 {[%emt 0:03:01]} 5. d3 {[%emt 0:00:32]} h6 $1 {[%emt 0:00:09]} 6. O-O {[%emt 0:01:06] B30: Sicilian: 2...Nc6 3 Bb5, lines without ...g6.} Bg7 {[%emt 0:00:44]} 7. a4 {[%emt 0:00:40]} Nge7 {[%emt 0:02:28]} 8. Be3 {[%emt 0:01:55] White has an edge.} d6 {[%emt 0:00:21]} 9. Nh4 {[%emt 0:27:42]} O-O {[%emt 0:07:59] [#]} 10. Nd5 $146 {[%emt 0:00:19]} (10. h3 $11 {remains equal.}) ({Predecessor:} 10. g3 Bh3 11. Ng2 Kh7 12. f4 Nd4 13. Nd5 f5 14. c3 Ndc6 15. Rf2 b6 16. Qd2 {½-½ (30) Tauber,M (2187)-Pribula,F (2076) Slovakia 2009}) 10... Nxd5 $17 {[%emt 0:01:27]} 11. Bxd5 {[%emt 0:00:10][%mdl 8192]} (11. exd5 $17 Qxh4 12. dxc6) 11... Qxh4 $19 {[%emt 0:00:16]} 12. f4 {[%emt 0:00:15]} exf4 {[%emt 0:02:05]} 13. Rxf4 {[%emt 0:00:24]} Qe7 {[%emt 0:00:27]} 14. c3 {[%emt 0:00:35]} Be6 {[%emt 0:00:46] [#] Hoping for ...Bxd5. Black is clearly winning.} 15. Qd2 {[%emt 0:01:19]} Rae8 {[%emt 0:00:50]} 16. c4 {[%emt 0:01:01]} (16. Bxc6 $142 bxc6 17. Re1) 16... Nd4 {[%emt 0:03:21]} 17. Raf1 {[%emt 0:01:04]} Bxd5 {[%emt 0:00:18]} 18. cxd5 {[%emt 0:00:10]} f5 {[%emt 0:00:36]} 19. Kh1 {[%emt 0:00:28]} fxe4 {[%emt 0:03:03] Strongly threatening ...Rxf4.} 20. dxe4 {[%emt 0:00:22] [#]} Qxe4 $1 {[%emt 0:02:10]} 21. Bxd4 {[%emt 0:01:16]} (21. Rxf8+ Rxf8) 21... Rxf4 {[%emt 0:03:31]} 22. Rxf4 {[%emt 0:01:22]} Qe1+ {[%emt 0:00:07]} 23. Qxe1 {[%emt 0:00:02]} Rxe1+ {[%emt 0:00:08][%mdl 4096] Endgame KRB-KRB} 24. Bg1 {[%emt 0:00:05]} Bd4 {[%emt 0:00:07][%csl Gd4][%cal Re1g1]} 25. h3 {[%emt 0:00:06]} Bxg1 {[%emt 0:00:35] KRB-KR} 26. Rf3 {[%emt 0:00:13]} Bd4+ {[%emt 0:00:08]} 27. Kh2 {[%emt 0:00:05]} Be5+ {[%emt 0:00:05]} 28. g3 {[%emt 0:00:04]} Re2+ {[%emt 0:00:05]} 29. Kg1 {[%emt 0:00:05]} Rxb2 {[%emt 0:00:08] ( -> ...c4)} 30. Kf1 {[%emt 0:00:44]} b6 {[%emt 0:00:20] aiming for ...c4.} 31. g4 {[%emt 0:00:06]} Rd2 {[%emt 0:00:08] Black took control after the opening.  Weighted Error Value: White=1.19/Black=0.18 (very precise)} 0-1

[Event "Portuguese-ch U14-20 2022"]
[Site "Fatima"]
[Date "2022.04.12"]
[Round "5.2"]
[White "Ribeiro, Orlando"]
[Black "Monteiro, Paulo Alexandre G"]
[Result "0-1"]
[ECO "B70"]
[WhiteElo "1945"]
[BlackElo "2032"]
[Annotator "RC"]
[PlyCount "102"]
[EventDate "2022.04.10"]
[EventType "swiss"]
[EventCountry "POR"]
[SourceTitle "playchess.com"]
[Source "ChessBase"]
[SourceQuality "1"]
[TimeControl "5400+30"]

1. e4 {[%emt 0:10:10]} c5 {[%emt 0:00:17]} 2. Nf3 {[%emt 0:00:33]} d6 {[%emt 0:00:10]} 3. d4 {[%emt 0:00:37]} cxd4 {[%emt 0:00:08]} 4. Nxd4 {[%emt 0:00:04]} Nf6 {[%emt 0:00:07]} 5. Nc3 {[%emt 0:00:04]} g6 {[%emt 0:00:10]} 6. g3 {[%emt 0:00:06]} Bg7 {[%emt 0:00:11]} 7. Bg2 {[%emt 0:00:34]} O-O {[%emt 0:00:25]} 8. O-O {[%emt 0:00:05]} Nc6 {[%emt 0:00:13]} 9. Nxc6 {[%emt 0:03:43]} bxc6 {[%emt 0:00:07]} 10. e5 {[%emt 0:00:04]} dxe5 {[%emt 0:00:14]} 11. Bxc6 {[%emt 0:00:34]} Rb8 {[%emt 0:00:14]} 12. Qxd8 {[%emt 0:07:11]} Rxd8 {[%emt 0:00:32]} 13. Re1 {[%emt 0:03:29]} Ne8 {[%emt 0:20:15]} 14. Na4 {[%emt 0:12:19]} Bf5 {[%emt 0:13:30]} 15. c4 {[%emt 0:10:11]} Nd6 {[%emt 0:09:07]} 16. b3 {[%emt 0:07:40]} Rbc8 {[%emt 0:04:07]} 17. Bg2 {[%emt 0:02:07]} Bd7 {[%emt 0:02:43]} 18. Nc3 {[%emt 0:00:45]} Nf5 {[%emt 0:01:55]} 19. Ba3 {[%emt 0:04:16]} e6 {[%emt 0:08:52]} 20. Rad1 {[%emt 0:03:41]} Nd4 {[%emt 0:01:25]} 21. Be7 {[%emt 0:01:53]} Re8 {[%emt 0:00:24]} 22. Bg5 {[%emt 0:00:09]} Bc6 {[%emt 0:02:57]} 23. Ne4 {[%emt 0:03:04]} Bxe4 {[%emt 0:04:32]} 24. Bxe4 {[%emt 0:00:35]} f5 {[%emt 0:01:18]} 25. Bg2 {[%emt 0:00:43]} e4 {[%emt 0:01:12]} 26. h4 {[%emt 0:08:00]} e5 {[%emt 0:05:37]} 27. Kf1 {[%emt 0:04:43]} Bf8 {[%emt 0:05:16]} 28. Rb1 {[%emt 0:03:43]} a5 {[%emt 0:03:11]} 29. Red1 {[%emt 0:01:14]} Bc5 {[%emt 0:01:54]} 30. Bd2 {[%emt 0:01:09]} Ra8 {[%emt 0:02:22]} 31. Bc3 {[%emt 0:00:27]} Red8 {[%emt 0:01:12]} 32. g4 {[%emt 0:00:36]} Kf7 {[%emt 0:00:57]} 33. Bd2 {[%emt 0:04:53]} Be7 {[%emt 0:02:32]} 34. h5 {[%emt 0:00:27]} Rdc8 {[%emt 0:01:21]} 35. Bc3 {[%emt 0:00:23]} Bc5 {[%emt 0:00:52]} 36. a3 {[%emt 0:04:03]} Bb6 {[%emt 0:04:13]} 37. Rdc1 {[%emt 0:01:15]} Rc6 {[%emt 0:03:14]} 38. Bd2 {[%emt 0:00:06]} Rac8 {[%emt 0:00:06]} 39. Ke1 {[%emt 0:03:06]} Bd8 {[%emt 0:00:29]} 40. hxg6+ {[%emt 0:01:15]} hxg6 {[%emt 0:00:08]} 41. Bc3 {[%emt 0:00:22]} a4 {[%emt 0:01:15]} 42. Bxd4 {[%emt 0:00:30]} exd4 {[%emt 0:00:07]} 43. gxf5 {[%emt 0:00:23]} gxf5 {[%emt 0:00:08]} 44. Bf1 {[%emt 0:00:31]} d3 {[%emt 0:00:28]} 45. bxa4 {[%emt 0:00:45]} Rxc4 {[%emt 0:01:32]} 46. Rb7+ {[%emt 0:00:15]} Ke6 {[%emt 0:00:29]} 47. Rxc4 {[%emt 0:00:17]} Rxc4 {[%emt 0:00:06]} 48. Kd1 {[%emt 0:00:21]} Bg5 {[%emt 0:00:39]} 49. Rb6+ {[%emt 0:00:19]} Ke5 {[%emt 0:00:19]} 50. Rb5+ {[%emt 0:00:17]} Kd6 {[%emt 0:01:03]} 51. Rb1 {[%emt 0:00:26]} Rc2 {[%emt 0:00:46]} 0-1

[Event "Portuguese-ch U14-20 2022"]
[Site "Fatima"]
[Date "2022.04.12"]
[Round "5.3"]
[White "Machado, Tomas Dias"]
[Black "Oliveira, Beatriz Correia"]
[Result "1/2-1/2"]
[ECO "B01"]
[WhiteElo "2030"]
[BlackElo "1558"]
[Annotator "RC"]
[PlyCount "84"]
[EventDate "2022.04.10"]
[EventType "swiss"]
[EventCountry "POR"]
[SourceTitle "playchess.com"]
[Source "ChessBase"]
[SourceQuality "1"]
[TimeControl "5400+30"]

1. e4 {[%emt 0:00:03]} d5 {[%emt 0:00:07]} 2. exd5 {[%emt 0:00:06]} Qxd5 {[%emt 0:00:07]} 3. Nc3 {[%emt 0:00:04]} Qa5 {[%emt 0:00:08]} 4. d4 {[%emt 0:00:04]} c6 {[%emt 0:00:19]} 5. Nf3 {[%emt 0:00:14]} Nf6 {[%emt 0:00:31]} 6. Bc4 {[%emt 0:00:07]} Bf5 {[%emt 0:00:17]} 7. Ne5 {[%emt 0:00:20]} e6 {[%emt 0:01:29]} 8. g4 {[%emt 0:00:17]} Be4 {[%emt 0:05:59]} 9. O-O {[%emt 0:05:17]} Bd5 {[%emt 0:04:50]} 10. Bd3 {[%emt 0:02:05]} Bd6 {[%emt 0:01:36]} 11. f4 {[%emt 0:00:11]} a6 {[%emt 0:07:31]} 12. Bd2 {[%emt 0:02:14]} Qc7 {[%emt 0:03:00]} 13. Qe2 {[%emt 0:01:34]} c5 {[%emt 0:08:14]} 14. Nxd5 {[%emt 0:09:05]} Nxd5 {[%emt 0:01:29]} 15. c4 {[%emt 0:01:18]} Ne7 {[%emt 0:04:11]} 16. d5 {[%emt 0:02:49]} exd5 {[%emt 0:05:46]} 17. cxd5 {[%emt 0:06:31]} b5 {[%emt 0:04:23]} 18. Rae1 {[%emt 0:18:07]} c4 {[%emt 0:15:49]} 19. Bc2 Nd7 {[%emt 0:05:41]} 20. Nc6 {[%emt 0:09:35]} Nb6 {[%emt 0:00:46]} 21. Ba5 {[%emt 0:05:53]} Bc5+ {[%emt 0:03:23]} 22. Kg2 {[%emt 0:01:19]} Ra7 {[%emt 0:08:14]} 23. Nxa7 {[%emt 0:03:20]} Qxa7 {[%emt 0:00:11]} 24. Bxb6 {[%emt 0:08:28]} Qxb6 {[%emt 0:00:28]} 25. Qe4 {[%emt 0:01:02]} Bd6 {[%emt 0:02:51]} 26. a4 {[%emt 0:01:28]} Kd7 {[%emt 0:01:47]} 27. Re2 {[%emt 0:03:15]} Qc5 {[%emt 0:01:48]} 28. Rd1 {[%emt 0:01:25]} h5 {[%emt 0:04:35]} 29. g5 {[%emt 0:00:39]} h4 {[%emt 0:02:52]} 30. h3 {[%emt 0:02:14]} f6 {[%emt 0:02:07]} 31. Qe6+ {[%emt 0:02:46]} Kc7 {[%emt 0:02:24]} 32. Qf7 {[%emt 0:00:27]} Kb6 {[%emt 0:01:40]} 33. a5+ {[%emt 0:02:56]} Kxa5 {[%emt 0:00:58]} 34. Ra1+ {[%emt 0:00:04]} Kb6 {[%emt 0:00:13]} 35. Re6 {[%emt 0:08:20]} Qxd5+ {[%emt 0:01:37]} 36. Be4 {[%emt 0:00:16]} Qd2+ {[%emt 0:00:21]} 37. Kf1 {[%emt 0:01:57]} Qxf4+ {[%emt 0:00:12]} 38. Ke1 {[%emt 0:01:29]} Qe3+ {[%emt 0:00:28]} 39. Kd1 {[%emt 0:00:17]} Qg1+ {[%emt 0:00:40]} 40. Kc2 {[%emt 0:00:06]} Qf2+ {[%emt 0:00:14]} 41. Kb1 {[%emt 0:02:31]} Qe1+ {[%emt 0:00:09]} 42. Ka2 {[%emt 0:00:23]} Qa5+ {[%emt 0:00:09]} 1/2-1/2

[Event "Portuguese-ch U14-20 2022"]
[Site "Fatima"]
[Date "2022.04.12"]
[Round "5.4"]
[White "Leao, Tiago Miguel Da Silv"]
[Black "Cunha, Alexandre Rodrigo Vi"]
[Result "1-0"]
[ECO "C47"]
[WhiteElo "2131"]
[BlackElo "1603"]
[Annotator "TA"]
[PlyCount "115"]
[EventDate "2022.04.10"]
[EventType "swiss"]
[EventCountry "POR"]
[SourceTitle "playchess.com"]
[Source "ChessBase"]
[SourceQuality "1"]
[TimeControl "5400+30"]

{[%evp 9,115,12,33,40,101,99,98,103,98,99,111,108,205,208,270,266,262,256,250,253,281,281,296,262,889,587,1128,1115,1619,1088,1061,1042,1500,1410,1352,1294,29993,599,599,583,583,543,522,481,455,450,770,768,1137,1093,1025,992,2500,2329,2191,2040,1743,1650,1991,1937,1657,1504,29959,29955,5181,3072,29977,29978,29981,29982,29982,29983,29983,29982,29982,29982,29982,29978,29978,29977,29982,29983,29983,29984,29985,29985,29980,29981,29981,29981,29981,29982,29983,29984,29984,29985,29985,29985,29985,29986,29986,29987,29987,29988,29988,29989,29989,29990]} 1. e4 {[%emt 0:00:06]} e5 {[%emt 0:00:56]} 2. Nf3 {[%emt 0:00:13]} Nc6 {[%emt 0:01:03]} 3. Nc3 {[%emt 0:00:16]} Nf6 {[%emt 0:00:27]} 4. a3 {[%emt 0:00:07]} Bc5 {[%emt 0:06:35]} 5. Nxe5 {[%emt 0:00:09]} Nxe5 {[%emt 0:00:08]} 6. d4 {[%emt 0:00:09] C47: Scotch Four Knights and Four Knights with 4 g3.} Bxd4 {[%emt 0:00:07]} 7. Qxd4 $16 {[%emt 0:00:09]} Nc6 {[%emt 0:00:03]} 8. Qd3 {[%emt 0:00:08] &Bianco is more active. White is better.} d6 {[%emt 0:03:16]} 9. Bf4 {[%emt 0:02:17] [#]} Bg4 $146 {[%emt 0:02:16]} ({Predecessor:} 9... O-O 10. O-O-O Be6 11. h4 Ng4 12. Qd2 Nce5 13. f3 Nf6 14. Qf2 Qe7 15. g4 c6 {0-1 (31) Haenselmann,H (1828)-Aumueller,N (1622) Playchess.com INT 2020}) 10. f3 {[%emt 0:00:17]} Bh5 {[%emt 0:00:09]} (10... Be6 $16) 11. O-O-O {[%emt 0:00:59]} Qe7 {[%emt 0:02:06]} 12. g4 {[%emt 0:01:18]} Bg6 {[%emt 0:00:24]} 13. Qb5 {[%emt 0:02:06]} O-O-O {[%emt 0:03:18]} 14. h4 {[%emt 0:02:13]} h5 {[%emt 0:07:52]} 15. g5 {[%emt 0:01:26]} Nd7 {[%emt 0:01:20]} 16. Nd5 {[%emt 0:02:54]} Qe8 {[%emt 0:01:00]} (16... Qf8 17. Bh3 Kb8 18. Bxd7 Rxd7) 17. Bh3 {[%emt 0:11:01][%cal Od5c7] And now Nxc7! would win.} Kb8 {[%emt 0:09:01] [#]} 18. Nxc7 $1 {[%emt 0:08:10][%mdl 512]} Kxc7 {[%emt 0:10:20]} (18... Nde5 19. Nxe8) 19. Rxd6 {[%emt 0:00:18][%csl Gb5][%cal Rd6c6]} Nde5 {[%emt 0:00:27] [#]} 20. Rxc6+ $1 {[%emt 0:00:32][%mdl 576] Remove Defender, Deflection} Qxc6 {[%emt 0:01:14]} (20... Kb8 21. Qxe5+) 21. Bxe5+ {[%emt 0:01:44] A strong pair of Bishops.} Rd6 {[%emt 0:00:36]} 22. Qa5+ {[%emt 0:01:56]} Qb6 {[%emt 0:01:03]} 23. Qxb6+ {[%emt 0:00:42]} (23. Bxd6+ $142 Kd8 24. Qe5 f5 25. gxf6 Qe3+ 26. Kb1 Qc1+ 27. Rxc1 Bf5 28. Qe7+ Kc8 29. Bxf5#) 23... axb6 $18 {[%emt 0:00:17]} 24. Rd1 {[%emt 0:00:10]} Rhd8 {[%emt 0:00:15]} 25. Rxd6 {[%emt 0:00:39]} Rxd6 {[%emt 0:00:08]} 26. Bxd6+ {[%emt 0:00:03]} Kxd6 {[%emt 0:00:07][%mdl 4096] Endgame KB-KB} 27. Kd2 {[%emt 0:00:08]} b5 {[%emt 0:03:34]} (27... f6 $142 28. gxf6 gxf6) 28. Ke3 {[%emt 0:00:12]} f6 {[%emt 0:00:22]} 29. gxf6 {[%emt 0:00:22]} gxf6 {[%emt 0:00:18]} 30. Kd4 {[%emt 0:00:07]} b6 {[%emt 0:01:08]} 31. Bf1 {[%emt 0:00:27]} Be8 {[%emt 0:02:02]} 32. f4 {[%emt 0:00:06]} Ke6 {[%emt 0:00:06]} 33. Be2 {[%emt 0:00:23]} Kd6 {[%emt 0:00:38]} 34. c4 {[%emt 0:01:30]} bxc4 {[%emt 0:01:21]} 35. Bxc4 {[%emt 0:00:07]} Bg6 {[%emt 0:04:25]} 36. b4 {[%emt 0:00:23]} Be8 {[%emt 0:00:16]} 37. e5+ {[%emt 0:00:12]} fxe5+ {[%emt 0:00:51]} 38. fxe5+ {[%emt 0:00:05] White mates.} Kc6 {[%emt 0:00:22]} 39. a4 {[%emt 0:00:07]} Kc7 {[%emt 0:00:37]} 40. Bb5 {[%emt 0:00:10]} Bf7 {[%emt 0:00:22]} 41. Ke4 {[%emt 0:00:19]} Kd8 {[%emt 0:00:31]} 42. Kf5 {[%emt 0:00:12]} Ke7 {[%emt 0:00:07]} 43. Bc6 {[%emt 0:00:26]} Be6+ {[%emt 0:02:32]} 44. Ke4 {[%emt 0:00:18]} Bc8 {[%emt 0:02:27]} 45. a5 {[%emt 0:01:59]} bxa5 {[%emt 0:00:33]} 46. bxa5 {[%emt 0:00:17]} Ke6 {[%emt 0:00:11]} 47. Bd5+ {[%emt 0:00:21]} Ke7 {[%emt 0:03:34] [#]} 48. Kf4 $1 {[%emt 0:00:19]} Ba6 {[%emt 0:02:47]} 49. Kg5 {[%emt 0:00:51]} Be2 {[%emt 0:00:26]} 50. Bb7 {[%emt 0:00:09]} Ke6 {[%emt 0:00:33]} 51. a6 {[%emt 0:00:41]} Bxa6 {[%emt 0:00:08]} 52. Bxa6 {[%emt 0:00:04]} Kxe5 {[%emt 0:00:06] KB-KP} 53. Be2 {[%emt 0:00:17]} Ke6 {[%emt 0:00:14]} 54. Kg6 {[%emt 0:00:06]} Ke7 {[%emt 0:00:18]} 55. Kg7 {[%emt 0:00:05]} Ke6 {[%emt 0:00:15]} 56. Bxh5 {[%emt 0:00:10]} Kf5 {[%emt 0:00:10]} 57. Bg6+ {[%emt 0:00:13]} Kg4 {[%emt 0:00:19]} 58. h5 {[%emt 0:00:04] Black got outplayed after the opening.  Weighted Error Value: White=0.54/Black=0.86} 1-0

[Event "Portuguese-ch U14-20 2022"]
[Site "Fatima"]
[Date "2022.04.12"]
[Round "5.5"]
[White "Marques, Joao Goncalo B A"]
[Black "Paiva, Manuel Maria Fonseca"]
[Result "1-0"]
[ECO "B12"]
[WhiteElo "1418"]
[BlackElo "1370"]
[Annotator "NA RC"]
[PlyCount "45"]
[EventDate "2022.04.10"]
[EventType "swiss"]
[EventCountry "POR"]
[SourceTitle "playchess.com"]
[Source "ChessBase"]
[SourceQuality "1"]
[TimeControl "5400+30"]

1. e4 {[%emt 0:00:02]} c6 {[%emt 0:00:02]} 2. d4 {[%emt 0:00:07]} d5 {[%emt 0:00:04]} 3. e5 {[%emt 0:00:04]} Bf5 {[%emt 0:00:14]} 4. Nf3 {[%emt 0:00:05]} e6 {[%emt 0:00:42]} 5. Be2 {[%emt 0:00:05]} c5 {[%emt 0:00:16]} 6. Be3 {[%emt 0:00:05]} Nc6 {[%emt 0:00:55]} 7. O-O {[%emt 0:02:35]} cxd4 {[%emt 0:00:15]} 8. Nxd4 {[%emt 0:00:08]} Nxe5 {[%emt 0:01:30]} 9. Nxf5 {[%emt 0:04:18]} exf5 {[%emt 0:00:02]} 10. Bb5+ {[%emt 0:00:39]} Nc6 {[%emt 0:00:42]} 11. Re1 {[%emt 0:02:01]} Be7 {[%emt 0:05:33]} 12. c4 {[%emt 0:02:48]} dxc4 {[%emt 0:03:14]} 13. Qa4 {[%emt 0:00:45]} Qd6 {[%emt 0:08:48]} 14. Nc3 {[%emt 0:04:23]} Nf6 {[%emt 0:01:02]} 15. Rad1 {[%emt 0:01:34]} Qc7 {[%emt 0:02:11]} 16. Bf4 {[%emt 0:21:36]} Qxf4 {[%emt 0:06:20]} 17. Bxc6+ {[%emt 0:00:33]} Kf8 {[%emt 0:00:32]} 18. Rxe7 {[%emt 0:02:46]} Kxe7 {[%emt 0:01:18]} 19. Qb4+ {[%emt 0:00:16]} Ke6 {[%emt 0:00:31]} 20. Re1+ {[%emt 0:03:17]} Ne4 {[%emt 0:00:10]} 21. Bxe4 {[%emt 0:00:48]} Qd2 {[%emt 0:04:21]} 22. Bd5+ {[%emt 0:01:10]} Kf6 {[%emt 0:00:23]} 23. Ne4+ {[%emt 0:00:09]} 1-0

[Event "Portuguese-ch U14-20 2022"]
[Site "Fatima"]
[Date "2022.04.12"]
[Round "5.6"]
[White "Voges, Guilherme"]
[Black "Gage, Daniel"]
[Result "1-0"]
[ECO "A00"]
[WhiteElo "1657"]
[BlackElo "1752"]
[Annotator "NA RC"]
[PlyCount "51"]
[EventDate "2022.04.10"]
[EventType "swiss"]
[EventCountry "POR"]
[SourceTitle "playchess.com"]
[Source "ChessBase"]
[SourceQuality "1"]
[TimeControl "5400+30"]

1. g3 {[%emt 0:00:01]} d5 {[%emt 0:00:05]} 2. Bg2 {[%emt 0:00:05]} Nf6 {[%emt 0:00:04]} 3. d3 {[%emt 0:00:05]} Bf5 {[%emt 0:00:26]} 4. Nf3 {[%emt 0:00:18]} c6 {[%emt 0:00:41]} 5. O-O {[%emt 0:00:29]} Nbd7 {[%emt 0:00:35]} 6. c4 {[%emt 0:02:17]} e6 {[%emt 0:00:08]} 7. cxd5 {[%emt 0:00:36]} exd5 {[%emt 0:00:02]} 8. Re1 {[%emt 0:01:00]} h6 {[%emt 0:00:44]} 9. e4 {[%emt 0:00:59]} dxe4 {[%emt 0:02:46]} 10. dxe4 {[%emt 0:00:13]} Bh7 {[%emt 0:02:08]} 11. Nc3 {[%emt 0:02:50]} Bb4 {[%emt 0:01:56]} 12. Qb3 {[%emt 0:05:45]} Qb6 {[%emt 0:02:18]} 13. Be3 {[%emt 0:07:11]} Qa5 {[%emt 0:06:08]} 14. e5 {[%emt 0:02:23]} Bxc3 {[%emt 0:11:26]} 15. exf6 {[%emt 0:04:25]} Bxe1 {[%emt 0:01:13]} 16. fxg7 {[%emt 0:01:11]} Bxf2+ {[%emt 0:00:54]} 17. Bxf2 {[%emt 0:00:08]} Rg8 {[%emt 0:03:06]} 18. Re1+ {[%emt 0:01:09]} Kd8 {[%emt 0:00:04]} 19. Qxf7 {[%emt 0:00:31]} Kc7 {[%emt 0:01:02]} 20. Bh3 {[%emt 0:02:01]} Qd5 {[%emt 0:02:59]} 21. Qxd5 {[%emt 0:02:24]} cxd5 {[%emt 0:00:03]} 22. Re7 {[%emt 0:00:10]} Rad8 {[%emt 0:01:02]} 23. Nd4 {[%emt 0:17:41]} a6 {[%emt 0:07:26]} 24. Be3 {[%emt 0:05:00]} Rge8 {[%emt 0:04:08]} 25. Bf4+ {[%emt 0:01:45]} Kc8 {[%emt 0:02:34]} 26. Bxd7+ {[%emt 0:00:10]} 1-0

[Event "Portuguese-ch U14-20 2022"]
[Site "Fatima"]
[Date "2022.04.12"]
[Round "5.7"]
[White "Maciel, Rafael"]
[Black "Teves, Pedro"]
[Result "0-1"]
[ECO "B24"]
[WhiteElo "1665"]
[BlackElo "1390"]
[Annotator "NA RC"]
[PlyCount "68"]
[EventDate "2022.04.10"]
[EventType "swiss"]
[EventCountry "POR"]
[SourceTitle "playchess.com"]
[Source "ChessBase"]
[SourceQuality "1"]
[TimeControl "5400+30"]

1. e4 {[%emt 0:00:03]} c5 {[%emt 0:00:18]} 2. Nc3 {[%emt 0:00:25]} Nc6 {[%emt 0:00:59]} 3. g3 {[%emt 0:01:17]} d6 {[%emt 0:01:30]} 4. Bg2 {[%emt 0:01:13]} g6 {[%emt 0:00:47]} 5. d3 {[%emt 0:00:31]} e5 {[%emt 0:01:15]} 6. f4 {[%emt 0:03:07]} Bg7 {[%emt 0:05:35]} 7. Nf3 {[%emt 0:00:59]} Nge7 {[%emt 0:00:36]} 8. O-O {[%emt 0:00:52]} O-O {[%emt 0:00:43]} 9. Be3 {[%emt 0:03:46]} Be6 {[%emt 0:00:23]} 10. Ng5 {[%emt 0:07:20]} Bd7 {[%emt 0:03:19]} 11. f5 {[%emt 0:00:17]} f6 {[%emt 0:07:25]} 12. fxg6 {[%emt 0:10:34]} fxg5 {[%emt 0:19:05]} 13. gxh7+ {[%emt 0:01:34]} Kxh7 {[%emt 0:01:13]} 14. Qh5+ {[%emt 0:00:08]} Kg8 {[%emt 0:00:26]} 15. Bxg5 {[%emt 0:00:24]} Qe8 {[%emt 0:01:57]} 16. Qh4 {[%emt 0:15:47]} Ng6 {[%emt 0:05:58]} 17. Qh5 {[%emt 0:00:08]} Nce7 {[%emt 0:03:12]} 18. Qe2 {[%emt 0:00:48]} Be6 {[%emt 0:01:08]} 19. h4 {[%emt 0:00:54]} Qd7 {[%emt 0:04:06]} 20. h5 {[%emt 0:02:27]} Bg4 {[%emt 0:00:10]} 21. Bf3 {[%emt 0:00:34]} Bxf3 {[%emt 0:02:17]} 22. Rxf3 {[%emt 0:00:22]} Rxf3 {[%emt 0:00:18]} 23. Qxf3 {[%emt 0:00:07]} Rf8 {[%emt 0:00:08]} 24. Qe2 {[%emt 0:05:30]} Nh8 {[%emt 0:05:34]} 25. Kg2 {[%emt 0:11:28]} Bf6 {[%emt 0:05:34]} 26. Be3 {[%emt 0:03:38]} Nf7 {[%emt 0:04:51]} 27. Rf1 {[%emt 0:03:03]} Bg7 {[%emt 0:03:41]} 28. g4 {[%emt 0:06:38]} Nh6 {[%emt 0:02:28]} 29. Rxf8+ {[%emt 0:01:24]} Kxf8 {[%emt 0:01:45]} 30. Qf3+ {[%emt 0:00:26]} Kg8 {[%emt 0:00:17]} 31. g5 {[%emt 0:02:51]} Nf7 {[%emt 0:02:06]} 32. g6 {[%emt 0:00:30]} Nh8 {[%emt 0:08:55]} 33. h6 {[%emt 0:01:20]} Nexg6 {[%emt 0:00:17]} 34. hxg7 {[%emt 0:00:53]} Nh4+ {[%emt 0:00:08]} 0-1